bitfinex-derivatives/quotes_ETHF0:USTF0_20210111
["timestamp","ask_amount","ask_price","bid_price","bid_amount"]
[1610349660307,4.00959,1028.5,1028.2,4.00959]
[1610349660507,4.00959,1028.5,1026.5,2.3908]
[1610349660508,6.18289,1028.5,1026.5,2.3908]
[1610349660706,2.1733,1028.5,1026.5,2.3908]
[1610349661507,2.1733,1028.5,1025.8,59.0071]
[1610349661907,2.1733,1028.5,1025.8,62.02615299]
[1610349662307,4.00959,1027.5,1027.2,4.00959]
[1610349662508,4.00959,1027.5,1025.8,59.0071]
[1610349662909,4.00959,1027.5,1025.9,1.50774549]
[1610349664210,4.00959,1026.5,1026.2,4.00959]
[1610349664608,4.00959,1026.5,1025.8,56.8623]
[1610349665509,4.00959,1026.5,1025.4,1.5212]
[1610349665910,2.1337,1026.6,1025.4,1.5212]
[1610349666311,1.6388,1027.6,1026.5,4.00959]
[1610349666512,1.6388,1027.6,1026.5,5.85369]
[1610349666711,70.8957,1028.8,1026.5,5.85369]
[1610349667913,70.8957,1028.8,1026.5,1.8441]
[1610349668315,4.00959,1026.6,1026.1,1.7065]
[1610349669715,2.1943,1026.9,1026.1,1.7065]
[1610349670717,6.4766,1028.6,1026.1,1.7065]
[1610349672318,6.4766,1028.6,1028.5,4.00959]
[1610349674023,6.4766,1028.6,1028.5,5.89729]
[1610349674223,70.8957,1028.8,1028.5,7.40228261]
[1610349675824,70.8957,1028.8,1028.6,1.50506022]
[1610349676025,12.4727,1031.1,1028.6,1.50506022]
[1610349676224,4.00959,1030.7,1030.1,4.00959]
[1610349676624,1.6847,1030.7,1030.1,4.00959]
[1610349677826,1.6847,1030.7,1028.5,9.7948]
[1610349678228,4.00959,1030.2,1029.7,4.00959]
[1610349678426,5.54759,1030.2,1029.7,4.00959]
[1610349678827,1.538,1030.2,1029.7,4.00959]
[1610349679628,1.6847,1030.7,1029.7,4.00959]
[1610349680328,1.6847,1030.7,1029.6,1.559]
[1610349681632,12.4727,1031.1,1029.5,68.8828]
[1610349681832,2.0546,1030.7,1029.5,68.8828]
[1610349682435,2.0546,1030.7,1030.6,4.00959]
[1610349683933,12.4727,1031.1,1030.6,4.00959]
[1610349684333,12.4727,1031.1,1031.0,4.00959]
[1610349686535,12.4727,1031.1,1029.8,1.8131]
[1610349686736,14.67,1031.1,1029.8,1.8131]
[1610349686937,14.67,1031.1,1028.5,3.0129289]
[1610349687137,14.67,1031.1,1028.3,3.01213434]
[1610349687339,14.67,1031.1,1028.2,3.01219195]
[1610349687838,14.67,1031.1,1028.3,30.0]
[1610349688237,14.67,1031.1,1028.3,33.012283]
[1610349688438,14.67,1031.1,1031.0,4.00959]
[1610349688638,14.67,1031.1,1029.4,1.943]
[1610349689840,14.67,1031.1,1028.4,1.50329049]
[1610349690038,14.67,1031.1,1027.6,3.01393192]
[1610349690438,4.00959,1029.6,1027.2,3.01598403]
[1610349690839,4.00959,1029.6,1027.1,3.01636037]
[1610349691239,4.00959,1029.6,1026.6,3.01837428]
[1610349691441,4.00959,1029.6,1027.3,1.5064221]
[1610349692339,4.00959,1027.4,1027.3,1.5064221]
[1610349692541,5.58349,1027.4,1027.3,1.5064221]
[1610349692739,5.58349,1027.4,1026.6,2.0984]
[1610349693139,5.58349,1027.4,1025.7,4.00959]
[1610349694342,1.5739,1027.4,1027.3,4.00959]
[1610349694740,6.2366,1029.6,1027.3,1.7568]
[1610349695648,6.2366,1029.6,1026.5,2.2182]
[1610349696347,4.00959,1026.8,1026.5,2.2182]
[1610349696648,2.369,1027.7,1026.5,2.2182]
[1610349697850,12.5964,1029.6,1026.5,2.2182]
[1610349698349,4.00959,1027.9,1027.1,4.00959]
[1610349698548,4.00959,1027.9,1026.5,2.2182]
[1610349699150,5.87309,1027.9,1026.5,2.2182]
[1610349699649,5.87309,1027.9,1025.4,75.3612]
[1610349700352,4.00959,1025.9,1025.8,4.00959]
[1610349700550,4.00959,1025.9,1025.4,75.3612]
[1610349702352,4.00959,1025.5,1025.4,75.3612]
[1610349703555,1.7894,1026.6,1025.4,75.3612]
[1610349703755,1.7894,1026.6,1025.4,77.3744]
[1610349703956,12.3561,1027.8,1025.4,77.3744]
[1610349704355,4.00959,1026.8,1026.4,1.9063]
[1610349705356,4.00959,1026.8,1025.4,2.0132]
[1610349706456,4.00959,1025.5,1025.4,2.0132]
[1610349707255,5.82459,1025.5,1023.9,3.02916683]
[1610349707456,5.82459,1025.5,1023.7,3.02980446]
[1610349707857,5.82459,1025.5,1023.5,3.03027609]
[1610349708057,5.82459,1025.5,1024.0,1.51259277]
[1610349708257,5.82459,1025.5,1024.0,3.89429277]
[1610349708460,4.00959,1024.1,1024.0,3.89429277]
[1610349709257,4.00959,1024.1,1024.0,1.51259277]
[1610349709458,4.00959,1024.1,1023.3,74.8868]
[1610349710458,4.00959,1023.4,1023.3,74.8868]
[1610349710658,5.75199,1023.4,1023.3,74.8868]
[1610349712660,1.7424,1023.4,1023.3,74.8868]
[1610349712862,1.5625,1024.2,1023.3,74.8868]
[1610349713062,5.8538,1025.3,1023.3,76.8911]
[1610349713663,5.8538,1025.3,1023.3,2.0043]
[1610349714462,4.00959,1024.4,1023.3,2.0043]
[1610349715063,6.19919,1024.4,1023.3,2.0043]
[1610349716062,2.1896,1024.4,1023.3,2.0043]
[1610349716462,2.4293,1024.7,1024.3,4.00959]
[1610349717365,2.2743,1025.2,1024.3,4.00959]
[1610349717663,2.2743,1025.2,1024.2,1.5551]
[1610349719363,5.8538,1025.3,1024.2,1.5551]
[1610349720465,4.00959,1024.3,1024.2,1.5551]
[1610349720866,2.3622,1025.2,1024.2,1.5551]
[1610349721866,2.3622,1025.2,1024.2,1.5046]
[1610349722469,4.00959,1024.3,1024.2,1.5046]
[1610349722667,1.6065,1024.9,1024.2,1.5046]
[1610349723867,6.1125,1025.4,1024.2,1.5046]
[1610349724467,4.00959,1024.8,1024.7,4.00959]
[1610349724667,4.00959,1024.8,1024.2,1.5046]
[1610349725767,1.5297,1025.2,1024.2,1.5046]
[1610349725967,6.1125,1025.4,1024.2,1.5046]
[1610349726566,6.1125,1025.4,1025.3,4.00959]
[1610349726767,6.1125,1025.4,1025.3,2.1915]
[1610349728268,59.1424,1026.1,1025.3,2.1915]
[1610349728469,59.1424,1026.1,1026.0,4.00959]
[1610349728670,59.1424,1026.1,1026.0,6.43609]
[1610349730576,15.85779,1027.9,1026.0,6.43609]
[1610349730773,11.8482,1027.9,1026.0,6.43609]
[1610349732477,11.8482,1027.9,1026.1,61.99008879]
[1610349732678,11.8482,1027.9,1027.8,1.5713]
[1610349732878,11.8482,1027.9,1027.8,1.9035]
[1610349733680,5.2217,1027.9,1027.8,1.9035]
[1610349733879,57.8605,1030.1,1027.8,1.9035]
[1610349734684,4.00959,1029.7,1029.0,4.00959]
[1610349735481,4.00959,1029.7,1027.8,1.9035]
[1610349736383,6.22909,1029.7,1027.8,1.9035]
[1610349736583,4.00959,1027.9,1027.4,66.387]
[1610349737585,2.1943,1028.0,1027.4,66.387]
[1610349738585,4.00959,1027.5,1027.4,66.387]
[1610349739385,4.00959,1027.5,1026.8,6.37569]
[1610349739585,4.00959,1027.5,1026.0,2.4265]
[1610349739785,4.00959,1027.5,1025.3,2.1915]
[1610349739984,4.00959,1027.5,1024.6,3.02294654]
[1610349740692,4.00959,1027.5,1026.8,4.00959]
[1610349741486,4.00959,1027.5,1026.6,1.6881]
[1610349742088,4.00959,1027.5,1025.3,75.1803]
[1610349742688,4.00959,1025.4,1025.3,75.1803]
[1610349743888,4.00959,1025.4,1022.7,3.02838956]
[1610349744089,4.00959,1025.4,1022.3,3.02886083]
[1610349744288,6.1778,1025.3,1022.3,3.02886083]
[1610349744489,6.1778,1025.3,1021.8,4.24040516]
[1610349744490,6.1778,1025.3,1022.0,3.03008346]
[1610349744692,4.00959,1023.2,1023.0,4.00959]
[1610349744889,4.00959,1023.2,1022.4,1.51305422]
[1610349745288,0.00959,1023.2,1022.4,1.51305422]
[1610349746092,2.04929,1023.2,1021.6,1.51342417]
[1610349746592,2.04929,1023.2,1022.8,4.00959]
[1610349746593,2.0397,1023.2,1022.8,4.00959]
[1610349748196,2.2857,1025.3,1022.8,4.00959]
[1610349748597,4.00959,1024.0,1023.9,4.00959]
[1610349748797,4.00959,1024.0,1022.9,1.51256382]
[1610349748995,2.451,1024.3,1022.9,1.51256382]
[1610349749797,2.2857,1025.3,1022.9,1.51256382]
[1610349749997,76.0726,1025.6,1022.9,1.51256382]
[1610349750197,76.0726,1025.6,1022.7,1.6219]
[1610349750597,74.3635,1025.6,1025.5,4.00959]
[1610349750797,74.3635,1025.6,1025.5,6.05919]
[1610349751197,12.4965,1027.7,1025.5,6.05919]
[1610349752601,4.00959,1027.1,1026.6,4.00959]
[1610349752799,4.00959,1027.1,1025.5,2.0496]
[1610349753200,6.03289,1027.1,1025.5,2.0496]
[1610349753702,6.03289,1027.1,1023.9,3.02567952]
[1610349754100,6.03289,1027.1,1023.6,3.02582807]
[1610349754300,6.03289,1027.1,1023.3,3.02721735]
[1610349754701,4.00959,1025.0,1023.0,3.02809725]
[1610349755104,4.00959,1025.0,1022.8,3.02807765]
[1610349755301,2.2594,1025.1,1022.8,3.02807765]
[1610349755502,2.2594,1025.1,1023.1,1.5116938]
[1610349755904,2.0233,1027.1,1023.1,3.5800938]
[1610349756404,2.0233,1027.1,1023.1,6.60816574]
[1610349756602,4.00959,1025.4,1025.2,4.00959]
[1610349756802,5.78609,1025.4,1025.2,4.00959]
[1610349757002,5.78609,1025.4,1023.2,1.51148582]
[1610349758002,1.7765,1025.4,1023.2,1.51148582]
[1610349758403,1.5546,1025.7,1023.2,1.51148582]
[1610349758602,1.5546,1025.7,1025.2,4.00959]
[1610349759005,1.5546,1025.7,1025.2,5.82979]
[1610349759403,1.5546,1025.7,1025.2,1.8202]
[1610349759604,2.0233,1027.1,1025.2,1.8202]
[1610349759807,2.07,1027.4,1025.2,1.8202]
[1610349760007,12.4965,1027.7,1025.2,1.8202]
[1610349760606,4.00959,1025.7,1025.5,4.00959]
[1610349760807,4.00959,1025.7,1025.2,1.8202]
[1610349761411,2.478,1025.7,1024.6,74.5912]
[1610349762408,2.0351,1026.3,1024.6,74.5912]
[1610349762607,1.7606,1026.6,1026.2,4.00959]
[1610349763109,1.7606,1026.6,1025.7,1.9894]
[1610349764006,6.49349,1027.4,1025.7,1.9894]
[1610349764208,2.4839,1027.4,1025.7,1.9894]
[1610349764606,4.00959,1026.9,1025.7,1.9894]
[1610349765006,5.78479,1026.9,1025.7,1.9894]
[1610349766210,5.78479,1026.9,1024.6,74.5912]
[1610349766610,4.00959,1025.0,1024.9,4.00959]
[1610349766814,2.0502,1025.3,1024.6,74.5912]
[1610349767210,2.0502,1025.3,1024.6,76.5582]
[1610349767410,1.7752,1026.9,1024.6,76.5582]
[1610349768714,4.00959,1026.3,1024.6,76.5582]
[1610349769316,4.00959,1026.3,1024.7,1.51061615]
[1610349770116,2.4839,1027.4,1024.7,1.51061615]
[1610349770316,70.231,1027.8,1024.7,1.51061615]
[1610349770717,70.231,1027.8,1027.0,4.00959]
[1610349770917,2.3184,1027.3,1027.0,4.00959]
[1610349771921,70.231,1027.8,1027.0,4.00959]
[1610349772119,70.231,1027.8,1026.8,2.2314]
[1610349772519,14.4887,1027.7,1026.8,2.2314]
[1610349772720,4.00959,1026.9,1025.4,4.00959]
[1610349772920,2.0385,1026.9,1025.4,4.00959]
[1610349773719,2.0385,1026.9,1024.6,1.967]
[1610349773919,2.0385,1026.9,1024.2,77.2979]
[1610349774722,2.0385,1026.9,1025.6,4.00959]
[1610349774924,2.0385,1026.9,1025.6,1.5534]
[1610349776024,2.0385,1026.9,1024.5,2.0049]
[1610349776225,6.59201094,1026.8,1024.5,2.0049]
[1610349776626,6.59201094,1026.8,1026.4,4.00959]
[1610349777433,6.59201094,1026.8,1026.4,6.03399]
[1610349777633,8.1684,1027.7,1026.4,6.03399]
[1610349778729,6.1762,1027.7,1027.6,4.00959]
[1610349779328,6.1762,1027.7,1027.0,1.5692]
[1610349779928,1.8328,1027.7,1027.0,1.5692]
[1610349780127,1.8328,1027.7,1026.4,2.0244]
[1610349780527,1.8328,1027.7,1026.0,1.6371]
[1610349780728,4.00959,1027.6,1026.9,4.00959]
[1610349781829,4.00959,1027.6,1026.0,1.6371]
[1610349782028,4.00959,1027.6,1024.5,2.0049]
[1610349782229,4.00959,1027.6,1024.2,3.02729223]
[1610349782230,1.8328,1027.7,1024.2,30.0]
[1610349782428,1.8328,1027.7,1024.3,3.02659171]
[1610349782628,1.8328,1027.7,1027.6,4.00959]
[1610349783228,1.8328,1027.7,1026.5,2.0285]
[1610349784632,1.8328,1027.7,1027.6,4.00959]
[1610349785031,1.6755,1028.0,1026.5,2.0285]
[1610349785231,4.00959,1028.4,1026.5,2.0285]
[1610349785631,8.0,1402.0,1026.5,2.0285]
[1610349785830,30.0,1036.8,1026.5,2.0285]
[1610349786032,30.0,1036.8,1026.6,30.0]
[1610349786231,30.0,1036.8,1026.5,2.0285]
[1610349786431,63.995,1036.8,1026.5,2.0285]
[1610349786832,63.995,1036.8,1028.9,4.00959]
[1610349787039,6.57625665,1036.7,1028.9,4.00959]
[1610349787241,0.96618,1035.0,1028.9,4.00959]
[1610349787439,3.34588,1035.0,1028.9,4.00959]
[1610349787639,36.3058,1034.9,1028.9,4.00959]
[1610349788140,30.0,1034.7,1028.9,4.00959]
[1610349788340,6.0729,1034.8,1028.9,4.00959]
[1610349788541,1.8996,1034.7,1028.9,4.00959]
[1610349788742,4.00959,1030.8,1030.3,4.00959]
[1610349788941,61.6874,1034.0,1030.3,4.00959]
[1610349790139,6.56899325,1033.9,1030.3,4.00959]
[1610349790739,6.56899325,1033.9,1030.7,4.00959]
[1610349791240,6.56899325,1033.9,1029.7,1.8837]
[1610349791440,6.56899325,1033.9,1030.0,1.6629]
[1610349792840,4.00959,1032.7,1032.3,4.00959]
[1610349793041,2.259,1032.7,1032.3,4.00959]
[1610349794642,2.259,1032.7,1030.0,1.6629]
[1610349794843,4.00959,1032.4,1032.2,4.00959]
[1610349795044,6.41229,1032.4,1032.2,4.00959]
[1610349795443,6.41229,1032.4,1030.0,1.6629]
[1610349795645,2.4027,1032.4,1030.0,1.6629]
[1610349796344,2.4027,1032.4,1029.7,1.8837]
[1610349796546,2.4027,1032.4,1029.4,1.5051]
[1610349796845,2.4027,1032.4,1032.3,4.00959]
[1610349799346,2.4027,1032.4,1031.2,1.8371]
[1610349799548,2.4027,1032.4,1030.7,79.66]
[1610349800050,2.259,1032.7,1030.7,79.66]
[1610349800252,2.1332,1032.4,1030.7,79.66]
[1610349800851,4.00959,1031.8,1031.3,4.00959]
[1610349801054,5.62039,1031.8,1030.7,79.66]
[1610349802860,4.00959,1031.6,1031.4,4.00959]
[1610349803054,1.6108,1031.8,1031.4,4.00959]
[1610349804954,2.1332,1032.4,1031.7,4.00959]
[1610349805356,2.259,1032.7,1031.7,4.00959]
[1610349805564,2.1146,1034.0,1031.7,4.00959]
[1610349805756,6.0729,1034.8,1031.7,4.00959]
[1610349806555,6.0729,1034.8,1031.7,5.52949]
[1610349806754,8.51190718,1034.7,1031.7,5.52949]
[1610349806955,6.40559,1034.3,1034.1,4.00959]
[1610349807155,2.396,1034.3,1034.1,4.00959]
[1610349808156,1.9557,1034.7,1034.1,4.00959]
[1610349808956,1.9557,1034.7,1033.6,1.8975]
[1610349809156,1.9557,1034.7,1031.7,1.5199]
[1610349809956,1.9557,1034.7,1031.1,2.0994]
[1610349810358,1.9557,1034.7,1030.0,30.0]
[1610349810560,1.9557,1034.7,1030.2,30.0]
[1610349810758,6.55287121,1034.6,1030.2,30.0]
[1610349810959,6.55287121,1034.6,1033.9,4.00959]
[1610349811159,6.55287121,1034.6,1030.5,3.00210789]
[1610349811360,6.55287121,1034.6,1032.3,1.5326]
[1610349812061,1.9557,1034.7,1032.3,1.5326]
[1610349812260,6.0729,1034.8,1032.3,1.5326]
[1610349812862,6.0729,1034.8,1034.5,4.00959]
[1610349813064,6.0729,1034.8,1032.3,1.5326]
[1610349814062,6.0729,1034.8,1031.9,1.997]
[1610349814262,8.4656,1034.8,1031.9,1.997]
[1610349814965,4.00959,1034.3,1033.6,4.00959]
[1610349815168,2.2894,1034.3,1033.6,4.00959]
[1610349816874,2.2894,1034.3,1034.2,4.00959]
[1610349817270,2.2894,1034.3,1033.1,75.3124]
[1610349818773,2.2894,1034.3,1033.1,72.8803]
[1610349818973,2.2894,1034.3,1033.8,4.00959]
[1610349820076,8.4656,1034.8,1033.8,4.00959]
[1610349820680,2.3927,1034.8,1033.8,4.00959]
[1610349820878,2.3927,1034.8,1033.1,72.8803]
[1610349820879,4.00959,1034.7,1034.4,4.00959]
[1610349821179,1.7776,1034.7,1034.4,4.00959]
[1610349824883,1.7776,1034.7,1034.6,4.00959]
[1610349825481,4.00959,1035.8,1034.6,4.00959]
[1610349826981,4.00959,1036.0,1035.6,4.00959]
[1610349827882,70.3735,1037.6,1035.6,4.00959]
[1610349828881,4.00959,1036.4,1036.0,4.00959]
[1610349829081,5.81689,1036.4,1036.0,4.00959]
[1610349829282,5.81689,1036.4,1034.4,1.5485]
[1610349830884,4.00959,1035.9,1035.4,4.00959]
[1610349831185,5.61889,1035.9,1035.4,4.00959]
[1610349831384,1.6093,1035.9,1035.4,4.00959]
[1610349831584,1.6093,1035.9,1034.1,1.8073]
[1610349831789,1.6093,1035.9,1033.5,1.7642]
[1610349831985,1.6093,1035.9,1031.9,2.99837803]
[1610349832186,1.6093,1035.9,1031.7,2.99633325]
[1610349832386,1.6093,1035.9,1031.8,2.99615569]
[1610349832586,1.6093,1035.9,1031.8,5.09615569]
[1610349832786,1.6093,1035.9,1031.8,2.1]
[1610349832987,4.00959,1034.9,1034.5,4.00959]
[1610349833187,2.1445,1034.9,1034.5,4.00959]
[1610349834187,1.6433,1035.2,1034.5,4.00959]
[1610349834387,1.6433,1035.2,1034.5,6.06809]
[1610349834788,1.6093,1035.9,1034.5,6.06809]
[1610349834988,4.00959,1034.9,1034.5,2.0585]
[1610349835189,5.82409,1034.9,1034.5,2.0585]
[1610349835590,5.82409,1034.9,1034.1,80.7221]
[1610349835790,5.82409,1034.9,1033.7,2.2488]
[1610349836191,5.82409,1034.9,1031.8,2.1]
[1610349836990,1.8145,1034.9,1031.8,2.1]
[1610349837190,1.8145,1034.9,1032.5,1.9216]
[1610349837391,6.82388539,1034.8,1032.5,1.9216]
[1610349838191,6.82388539,1034.8,1031.9,1.4996561]
[1610349838793,6.82388539,1034.8,1031.8,2.1]
[1610349838994,6.82388539,1034.8,1030.1,2.95575861]
[1610349839593,6.4719,1034.7,1030.0,2.95909519]
[1610349839792,6.4719,1034.7,1029.9,2.96050679]
[1610349839992,6.4719,1034.7,1030.2,1.5003704]
[1610349840192,6.4719,1034.7,1030.2,3.2904704]
[1610349840993,4.00959,1031.9,1030.2,3.2904704]
[1610349841392,4.00959,1031.9,1030.3,1.5013131]
[1610349843094,4.00959,1031.4,1031.1,4.00959]
[1610349843494,4.00959,1031.4,1030.3,1.5013131]
[1610349844795,2.2855,1031.7,1030.3,1.5013131]
[1610349845097,4.00959,1031.8,1031.6,4.00959]
[1610349845295,1.8549,1032.1,1031.6,4.00959]
[1610349845694,1.8549,1032.1,1031.0,2.0279]
[1610349846096,71.1763,1033.2,1031.0,2.0279]
[1610349846997,4.00959,1031.7,1031.3,4.00959]
[1610349847498,1.8998,1032.0,1031.0,2.0279]
[1610349848999,1.8998,1032.0,1031.5,4.00959]
[1610349849201,1.8998,1032.0,1031.3,1.8359]
[1610349849803,1.5322,1032.3,1031.3,1.8359]
[1610349850002,71.1763,1033.2,1031.3,1.8359]
[1610349851005,71.1763,1033.2,1033.1,4.00959]
[1610349851207,71.1763,1033.2,1033.1,5.60099]
[1610349854415,12.7302,1034.7,1033.1,5.60099]
[1610349855115,12.7302,1034.7,1033.1,1.5914]
[1610349856114,12.7302,1034.7,1032.6,59.4572]
[1610349857116,4.00959,1032.7,1032.6,59.4572]
[1610349858616,5.56389,1032.7,1032.6,59.4572]
[1610349859416,5.56389,1032.7,1032.5,64.4454]
[1610349859620,1.5543,1032.7,1031.3,1.8359]
[1610349859818,1.5543,1032.7,1031.0,32.0279]
[1610349860018,1.9612,1033.0,1031.0,30.0]
[1610349860419,30.0,1038.2,1031.0,32.4829]
[1610349860619,30.0,1038.2,1031.0,2.4829]
[1610349860819,40.216,1038.2,1031.0,2.4829]
[1610349861021,40.216,1038.2,1032.6,4.00959]
[1610349861420,8.60216,1038.1,1032.6,4.00959]
[1610349862720,6.82261485,1038.0,1032.6,34.00959]
[1610349863020,4.00959,1034.7,1034.2,4.00959]
[1610349863221,6.34829,1034.7,1032.2,32.1184]
[1610349863621,6.34829,1034.7,1032.2,2.1184]
[1610349864121,2.3387,1034.7,1032.2,2.1184]
[1610349864322,2.3387,1034.7,1032.3,1.49865612]
[1610349864522,1.7772,1038.1,1032.3,1.49865612]
[1610349865123,1.7772,1038.1,1034.3,1.5422]
[1610349865523,6.36997388,1038.0,1034.3,1.5422]
[1610349865923,30.0,1037.9,1034.3,1.5422]
[1610349866323,30.0,1037.9,1032.3,1.49865612]
[1610349866524,6.36997388,1038.0,1032.3,1.49865612]
[1610349866723,30.0,1037.9,1032.3,1.49865612]
[1610349866923,33.405,1037.9,1032.3,1.49865612]
[1610349867123,4.00959,1033.9,1033.3,4.00959]
[1610349867522,4.00959,1033.9,1032.2,2.1184]
[1610349867723,4.00959,1033.9,1031.1,32.96900542]
[1610349867924,6.34149,1033.9,1031.1,2.96900542]
[1610349868123,6.34149,1033.9,1031.0,2.4829]
[1610349868323,6.34149,1033.9,1031.2,1.49908463]
[1610349868726,6.34149,1033.9,1031.2,3.61938463]
[1610349869025,2.3319,1033.9,1031.2,3.61938463]
[1610349869728,6.37771878,1033.8,1031.3,1.50021328]
[1610349871028,4.00959,1031.4,1031.3,1.50021328]
[1610349871229,4.00959,1031.4,1030.2,1.7901]
[1610349871430,4.00959,1031.4,1029.6,30.0]
[1610349872031,2.4068,1031.5,1029.6,30.0]
[1610349872230,2.4068,1031.5,1029.6,32.4282]
[1610349872632,2.4068,1031.5,1029.7,1.50105031]
[1610349873031,2.4068,1031.5,1031.1,4.00959]
[1610349873232,2.4068,1031.5,1029.7,1.50105031]
[1610349874132,79.8108,1032.9,1029.7,1.50105031]
[1610349875034,4.00959,1031.3,1030.6,4.00959]
[1610349875434,4.00959,1031.3,1029.7,1.50105031]
[1610349876034,1.8226,1031.8,1029.7,1.50105031]
[1610349876436,79.8108,1032.9,1029.7,1.50105031]
[1610349876636,79.8108,1032.9,1029.7,31.50105031]
[1610349877035,4.00959,1031.8,1030.5,4.00959]
[1610349877436,1.5205,1032.2,1030.5,34.00959]
[1610349877636,1.5205,1032.2,1030.5,36.15019]
[1610349878436,79.8108,1032.9,1030.5,36.15019]
[1610349879036,79.8108,1032.9,1032.8,4.00959]
[1610349879637,79.8108,1032.9,1032.6,1.7494]
[1610349881037,4.00959,1032.8,1031.9,4.00959]
[1610349881238,4.00959,1032.8,1030.7,2.97171454]
[1610349881438,4.00959,1032.8,1030.5,2.1406]
[1610349881837,4.00959,1032.8,1030.6,30.0]
[1610349882239,79.8108,1032.9,1030.6,31.50001896]
[1610349882640,2.1901,1033.0,1030.6,31.50001896]
[1610349882840,2.1901,1033.0,1030.6,1.50001896]
[1610349885045,6.19969,1033.0,1032.5,4.00959]
[1610349885444,6.19969,1033.0,1031.8,1.8225]
[1610349886244,2.1901,1033.0,1031.8,1.8225]
[1610349886444,6.2562,1033.6,1031.8,1.8225]
[1610349886644,1.7348,1033.0,1031.8,1.8225]
[1610349887045,5.74439,1033.0,1032.2,4.00959]
[1610349887445,1.7348,1033.0,1032.2,4.00959]
[1610349887847,1.7348,1033.0,1032.2,34.00959]
[1610349888046,6.2562,1033.6,1032.2,35.65229]
[1610349888248,6.2562,1033.6,1032.2,5.65229]
[1610349889149,4.00959,1033.3,1032.9,4.00959]
[1610349889548,6.2562,1033.6,1032.9,4.00959]
[1610349891048,4.00959,1033.3,1032.9,4.00959]
[1610349891449,4.00959,1033.3,1032.2,1.6427]
[1610349892350,4.00959,1033.3,1032.0,60.4704]
[1610349893050,6.2562,1033.6,1032.0,60.4704]
[1610349895050,6.2562,1033.6,1032.1,30.0]
[1610349895250,6.2562,1033.6,1032.0,60.4704]
[1610349896651,6.2562,1033.6,1032.1,3.531139]
[1610349896851,6.2562,1033.6,1032.2,30.0]
[1610349897151,6.2562,1033.6,1033.5,4.00959]
[1610349897852,6.2562,1033.6,1032.7,2.0208]
[1610349898555,6.2562,1033.6,1032.7,32.0208]
[1610349899056,2.1705,1034.7,1032.7,32.0208]
[1610349899255,2.1705,1034.7,1034.3,4.00959]
[1610349899961,74.0246,1035.5,1034.3,4.00959]
[1610349901262,4.00959,1035.4,1034.8,4.00959]
[1610349901864,6.2191,1037.3,1034.8,4.00959]
[1610349903267,4.00959,1036.3,1035.7,4.00959]
[1610349903569,6.14899,1036.3,1035.7,4.00959]
[1610349903767,6.14899,1036.3,1034.6,1.9323]
[1610349905968,5.14899,1036.3,1034.6,1.9323]
[1610349906469,5.14899,1036.3,1034.2,2.3504]
[1610349906669,5.14899,1036.3,1033.7,1.7331]
[1610349906871,5.14899,1036.3,1032.2,2.99761016]
[1610349907271,4.00959,1034.4,1032.0,30.0]
[1610349907470,5.99559,1034.4,1032.0,30.0]
[1610349907671,1.986,1034.4,1032.0,30.0]
[1610349907971,1.986,1034.4,1032.1,31.5032]
[1610349908572,12.1509,1036.1,1032.1,31.5032]
[1610349908774,12.1509,1036.1,1032.2,1.49679566]
[1610349909173,12.1509,1036.1,1035.2,4.00959]
[1610349909574,2.1394,1036.3,1035.2,4.00959]
[1610349909774,6.2467,1040.8,1035.2,4.00959]
[1610349909979,35.9971,1040.7,1034.9,2.3196]
[1610349910581,35.9971,1040.7,1034.0,2.3612]
[1610349910778,74.4166,1038.4,1034.2,63.0822]
[1610349910981,30.0,1038.3,1034.2,63.0822]
[1610349911180,36.3425,1038.3,1034.4,4.00959]
[1610349911380,6.3425,1038.3,1034.4,4.00959]
[1610349911576,6.3,1038.2,1034.2,63.0822]
[1610349912379,30.0,1038.1,1034.2,63.0822]
[1610349912780,31.6891,1038.1,1034.2,63.0822]
[1610349913080,6.37426372,1038.0,1034.2,63.0822]
[1610349913281,4.00959,1034.3,1034.2,63.0822]
[1610349913482,6.04439,1034.3,1034.2,63.0822]
[1610349915187,2.0348,1034.3,1034.2,63.0822]
[1610349915589,2.2937,1034.7,1034.2,63.0822]
[1610349916388,1.6891,1038.1,1034.2,63.0822]
[1610349917191,1.6891,1038.1,1035.4,4.00959]
[1610349917590,6.37114455,1038.0,1035.4,4.00959]
[1610349919298,4.00959,1036.0,1034.5,2.2725]
[1610349919496,6.49399,1036.0,1034.5,2.2725]
[1610349919696,6.49399,1036.0,1033.8,1.7437]
[1610349920097,6.49399,1036.0,1033.4,55.056]
[1610349921297,4.00959,1034.0,1033.7,4.00959]
[1610349921496,2.4844,1036.0,1033.7,4.00959]
[1610349921699,6.37158158,1035.9,1033.7,4.00959]
[1610349922798,6.37158158,1035.9,1033.5,1.49616246]
[1610349922998,6.37158158,1035.9,1033.4,55.056]
[1610349923199,4.00959,1034.0,1033.7,4.00959]
[1610349923399,6.37158158,1035.9,1033.7,4.00959]
[1610349923599,1.5201,1034.2,1033.7,4.00959]
[1610349924801,1.553,1034.9,1033.7,4.00959]
[1610349925001,1.553,1034.9,1033.7,6.05729]
[1610349925201,1.553,1034.9,1034.8,4.00959]
[1610349925802,1.553,1034.9,1034.1,2.0508]
[1610349926703,1.553,1034.9,1033.8,1.49520463]
[1610349927102,1.553,1034.9,1033.7,2.0477]
[1610349927301,1.553,1034.9,1034.8,4.00959]
[1610349928102,1.553,1034.9,1034.1,2.004]
[1610349928802,1.553,1034.9,1033.7,2.0477]